[Event "Late Titled Tuesday Blitz February 8 2022"]
[White "Ibarra Jerez, Jose Carlos"]
[Black "Yang, Cayden"]
[WhiteFideId "2226332"]
[BlackFideId "30967260"]
[WhiteElo "2626"]
[BlackElo "2634"]
[Result "1-0"]
[Round "03"]
[TimeControl "180+1"]
[Date "2022.02.08"]
[WhiteClock "0:00:48"]
[BlackClock "0:00:02"]

1. e4 {[%clk 0:03:00]}  e5 {[%clk 0:02:57]} 2. Nf3 {[%clk 0:03:01]}  Nc6 {[%clk 0:02:57]} 3. d4 {[%clk 0:03:01]}  exd4 {[%clk 0:02:56]} 4. Nxd4 {[%clk 0:03:02]}  Nf6 {[%clk 0:02:56]} 5. Nxc6 {[%clk 0:03:01]}  bxc6 {[%clk 0:02:57]} 6. Qe2 {[%clk 0:03:01]}  a5 {[%clk 0:02:48]} 7. Nc3 {[%clk 0:03:00]}  Bb4 {[%clk 0:02:45]} 8. Bd2 {[%clk 0:02:37]}  O-O {[%clk 0:02:44]} 9. O-O-O {[%clk 0:02:27]}  Ba6 {[%clk 0:02:32]} 10. Qf3 {[%clk 0:02:25]}  Bxf1 {[%clk 0:02:17]} 11. Rhxf1 {[%clk 0:02:25]}  Qe7 {[%clk 0:02:14]} 12. Rfe1 {[%clk 0:02:21]}  d6 {[%clk 0:01:16]} 13. a3 {[%clk 0:02:15]}  Bc5 {[%clk 0:01:13]} 14. Bg5 {[%clk 0:02:09]}  h6 {[%clk 0:01:08]} 15. Bh4 {[%clk 0:02:04]}  g5 {[%clk 0:01:07]} 16. Bg3 {[%clk 0:02:03]}  Nd7 {[%clk 0:01:07]} 17. Qh5 {[%clk 0:02:00]}  Qe6 {[%clk 0:01:00]} 18. h4 {[%clk 0:01:45]}  Qg6 {[%clk 0:00:53]} 19. Qe2 {[%clk 0:01:36]}  Rfe8 {[%clk 0:00:46]} 20. hxg5 {[%clk 0:01:34]}  hxg5 {[%clk 0:00:45]} 21. f4 {[%clk 0:01:27]}  gxf4 {[%clk 0:00:39]} 22. Bxf4 {[%clk 0:01:27]}  Ne5 {[%clk 0:00:39]} 23. Rh1 {[%clk 0:01:20]}  Ng4 {[%clk 0:00:32]} 24. Rh4 {[%clk 0:01:13]}  f5 {[%clk 0:00:09]} 25. exf5 {[%clk 0:00:59]}  Rxe2 {[%clk 0:00:07]} 26. fxg6 {[%clk 0:00:59]}  Nf2 {[%clk 0:00:06]} 27. Nxe2 {[%clk 0:00:56]}  Nxd1 {[%clk 0:00:01]} 28. Kxd1 {[%clk 0:00:56]}  Re8 {[%clk 0:00:01]} 29. Rh7 {[%clk 0:00:52]}  Bf2 {[%clk 0:00:02]} 30. Rxc7 {[%clk 0:00:49]}  Be3 {[%clk 0:00:02]} 31. Bxe3 {[%clk 0:00:48]} 1-0


[Site "https://www.chess.com"]

[Event "Late Titled Tuesday Blitz February 8 2022"]
[White "Kalajzic, Ivan"]
[Black "Ozates, Tuna"]
[WhiteFideId "14506378"]
[BlackFideId "6354521"]
[WhiteElo "2163"]
[BlackElo "1872"]
[Result "0-1"]
[Round "03"]
[TimeControl "180+1"]
[Date "2022.02.09"]
[WhiteClock "0:00:11"]
[BlackClock "0:01:09"]

1. b3 {[%clk 0:02:34]}  c5 {[%clk 0:02:58]} 2. Bb2 {[%clk 0:02:32]}  Nc6 {[%clk 0:02:58]} 3. e3 {[%clk 0:02:29]}  e5 {[%clk 0:02:58]} 4. Bb5 {[%clk 0:02:27]}  Qg5 {[%clk 0:02:57]} 5. Nf3 {[%clk 0:02:21]}  Qxg2 {[%clk 0:02:57]} 6. Rg1 {[%clk 0:02:20]}  Qh3 {[%clk 0:02:57]} 7. Bxc6 {[%clk 0:02:18]}  dxc6 {[%clk 0:02:57]} 8. Bxe5 {[%clk 0:02:17]}  Bg4 {[%clk 0:02:55]} 9. Rg3 {[%clk 0:02:11]}  Qh5 {[%clk 0:02:54]} 10. Bb2 {[%clk 0:02:01]}  Bd6 {[%clk 0:02:45]} 11. Rxg4 {[%clk 0:01:31]}  Qxg4 {[%clk 0:02:43]} 12. d3 {[%clk 0:01:32]}  Nf6 {[%clk 0:02:39]} 13. Nbd2 {[%clk 0:01:31]}  O-O-O {[%clk 0:02:31]} 14. Qe2 {[%clk 0:01:31]}  Nd5 {[%clk 0:02:28]} 15. O-O-O {[%clk 0:01:30]}  f6 {[%clk 0:02:28]} 16. Rg1 {[%clk 0:01:28]}  Qd7 {[%clk 0:02:27]} 17. Ne4 {[%clk 0:01:23]}  Rhg8 {[%clk 0:02:18]} 18. Nfd2 {[%clk 0:01:19]}  Bxh2 {[%clk 0:02:05]} 19. Rh1 {[%clk 0:01:17]}  Be5 {[%clk 0:02:04]} 20. Nxc5 {[%clk 0:01:16]}  Bxb2+ {[%clk 0:02:02]} 21. Kxb2 {[%clk 0:01:15]}  Qe7 {[%clk 0:02:03]} 22. d4 {[%clk 0:01:12]}  g6 {[%clk 0:01:55]} 23. c4 {[%clk 0:01:06]}  Nc7 {[%clk 0:01:52]} 24. Qf3 {[%clk 0:00:45]}  Ne6 {[%clk 0:01:38]} 25. Qh3 {[%clk 0:00:42]}  f5 {[%clk 0:01:30]} 26. Nxe6 {[%clk 0:00:36]}  Qxe6 {[%clk 0:01:31]} 27. Nf3 {[%clk 0:00:37]}  Qe4 {[%clk 0:01:24]} 28. Ne5 {[%clk 0:00:34]}  h5 {[%clk 0:01:20]} 29. Rg1 {[%clk 0:00:24]}  Rxd4 {[%clk 0:01:17]} 30. exd4 {[%clk 0:00:22]}  Qxd4+ {[%clk 0:01:18]} 31. Ka3 {[%clk 0:00:13]}  Qc5+ {[%clk 0:01:10]} 32. b4 {[%clk 0:00:11]}  Qxe5 {[%clk 0:01:09]} 0-1


[Site "https://www.chess.com"]

[Event "Late Titled Tuesday Blitz February 8 2022"]
[White "Kashefi, Amir Hosein"]
[Black "Zierk, Steven"]
[WhiteFideId "12557935"]
[BlackFideId "2034255"]
[WhiteElo "2501"]
[BlackElo "2821"]
[Result "0-1"]
[Round "03"]
[TimeControl "180+1"]
[Date "2022.02.09"]
[WhiteClock "0:00:01"]
[BlackClock "0:00:48"]

1. d4 {[%clk 0:03:00]}  d5 {[%clk 0:03:00]} 2. Nf3 {[%clk 0:03:00]}  Nf6 {[%clk 0:02:59]} 3. g3 {[%clk 0:02:55]}  c5 {[%clk 0:02:57]} 4. dxc5 {[%clk 0:02:51]}  e6 {[%clk 0:02:57]} 5. b4 {[%clk 0:02:47]}  a5 {[%clk 0:02:56]} 6. c3 {[%clk 0:02:46]}  axb4 {[%clk 0:02:56]} 7. cxb4 {[%clk 0:02:47]}  b6 {[%clk 0:02:57]} 8. a4 {[%clk 0:02:41]}  bxc5 {[%clk 0:02:56]} 9. b5 {[%clk 0:02:40]}  c4 {[%clk 0:02:49]} 10. Bg2 {[%clk 0:02:37]}  Bc5 {[%clk 0:02:49]} 11. O-O {[%clk 0:02:34]}  O-O {[%clk 0:02:49]} 12. Ne5 {[%clk 0:02:12]}  Ra7 {[%clk 0:02:29]} 13. Bd2 {[%clk 0:01:57]}  Qc7 {[%clk 0:02:14]} 14. Bc3 {[%clk 0:01:25]}  Rd8 {[%clk 0:02:00]} 15. Bd4 {[%clk 0:01:07]}  Ne4 {[%clk 0:01:41]} 16. e3 {[%clk 0:00:35]}  f6 {[%clk 0:01:36]} 17. Nxc4 {[%clk 0:00:28]}  dxc4 {[%clk 0:01:23]} 18. Bxe4 {[%clk 0:00:26]}  f5 {[%clk 0:01:17]} 19. Bf3 {[%clk 0:00:17]}  e5 {[%clk 0:01:14]} 20. Bxe5 {[%clk 0:00:16]}  Rxd1 {[%clk 0:01:13]} 21. Bxc7 {[%clk 0:00:15]}  Rxf1+ {[%clk 0:01:13]} 22. Kxf1 {[%clk 0:00:15]}  Rxc7 {[%clk 0:01:12]} 23. a5 {[%clk 0:00:15]}  Bb4 {[%clk 0:00:59]} 24. b6 {[%clk 0:00:05]}  Rd7 {[%clk 0:00:51]} 25. Ke2 {[%clk 0:00:01]}  Ba6 {[%clk 0:00:49]} 26. Na3 {[%clk 0:00:01]}  c3+ {[%clk 0:00:48]} 27. Ke1 {[%clk 0:00:01]}  c2# {[%clk 0:00:48]} 0-1


[Site "https://www.chess.com"]

[Event "Late Titled Tuesday Blitz February 8 2022"]
[White "Khanin, Semen"]
[Black "Stearman, Josiah"]
[WhiteFideId "4111990"]
[BlackFideId "2062496"]
[WhiteElo "2793"]
[BlackElo "2553"]
[Result "1-0"]
[Round "03"]
[TimeControl "180+1"]
[Date "2022.02.09"]
[WhiteClock "0:00:03"]
[BlackClock "0:00:07"]

1. e4 {[%clk 0:03:00]}  c5 {[%clk 0:02:59]} 2. Nf3 {[%clk 0:02:59]}  Nc6 {[%clk 0:02:54]} 3. c3 {[%clk 0:03:00]}  e5 {[%clk 0:02:49]} 4. d4 {[%clk 0:02:57]}  cxd4 {[%clk 0:02:43]} 5. cxd4 {[%clk 0:02:57]}  d5 {[%clk 0:02:40]} 6. exd5 {[%clk 0:02:54]}  Qxd5 {[%clk 0:02:40]} 7. Nc3 {[%clk 0:02:54]}  Bb4 {[%clk 0:02:41]} 8. Nxe5 {[%clk 0:02:17]}  Nxd4 {[%clk 0:02:22]} 9. Qa4+ {[%clk 0:02:12]}  Bd7 {[%clk 0:02:15]} 10. Nxd7 {[%clk 0:01:47]}  b5 {[%clk 0:01:41]} 11. Qxb4 {[%clk 0:01:02]}  Nc2+ {[%clk 0:01:36]} 12. Ke2 {[%clk 0:01:02]}  Qe6+ {[%clk 0:00:53]} 13. Qe4 {[%clk 0:00:58]}  Nxa1 {[%clk 0:00:52]} 14. Ne5 {[%clk 0:00:52]}  Rd8 {[%clk 0:00:39]} 15. Kf3 {[%clk 0:00:50]}  Nf6 {[%clk 0:00:33]} 16. Bxb5+ {[%clk 0:00:49]}  Kf8 {[%clk 0:00:32]} 17. Qf4 {[%clk 0:00:34]}  Nc2 {[%clk 0:00:24]} 18. Bc4 {[%clk 0:00:27]}  Qe7 {[%clk 0:00:10]} 19. Be3 {[%clk 0:00:23]}  Qb7+ {[%clk 0:00:08]} 20. Ne4 {[%clk 0:00:16]}  Nd4+ {[%clk 0:00:08]} 21. Bxd4 {[%clk 0:00:15]}  Rxd4 {[%clk 0:00:09]} 22. Bd3 {[%clk 0:00:12]}  Nd5 {[%clk 0:00:03]} 23. Qf5 {[%clk 0:00:11]}  f6 {[%clk 0:00:03]} 24. Rc1 {[%clk 0:00:07]}  Ne7 {[%clk 0:00:03]} 25. Qe6 {[%clk 0:00:06]}  fxe5 {[%clk 0:00:02]} 26. Ke2 {[%clk 0:00:05]}  Rxe4+ {[%clk 0:00:01]} 27. Bxe4 {[%clk 0:00:05]}  Qxe4+ {[%clk 0:00:02]} 28. Kf1 {[%clk 0:00:06]}  Qd3+ {[%clk 0:00:03]} 29. Kg1 {[%clk 0:00:06]}  Qd8 {[%clk 0:00:03]} 30. Re1 {[%clk 0:00:04]}  Ng6 {[%clk 0:00:01]} 31. h4 {[%clk 0:00:04]}  Qf6 {[%clk 0:00:01]} 32. Qc8+ {[%clk 0:00:05]}  Kf7 {[%clk 0:00:02]} 33. Qc4+ {[%clk 0:00:05]}  Qe6 {[%clk 0:00:02]} 34. Qe4 {[%clk 0:00:05]}  Re8 {[%clk 0:00:03]} 35. h5 {[%clk 0:00:05]}  Nf4 {[%clk 0:00:03]} 36. g3 {[%clk 0:00:06]}  Nd5 {[%clk 0:00:03]} 37. Qxh7 {[%clk 0:00:06]}  Nf6 {[%clk 0:00:04]} 38. Qg6+ {[%clk 0:00:06]}  Kg8 {[%clk 0:00:04]} 39. h6 {[%clk 0:00:06]}  Qf7 {[%clk 0:00:04]} 40. Qg5 {[%clk 0:00:06]}  Nh7 {[%clk 0:00:04]} 41. Qg4 {[%clk 0:00:06]}  g6 {[%clk 0:00:04]} 42. Qa4 {[%clk 0:00:04]}  Qe7 {[%clk 0:00:04]} 43. Qb3+ {[%clk 0:00:04]}  Kh8 {[%clk 0:00:04]} 44. Re4 {[%clk 0:00:04]}  Nf6 {[%clk 0:00:05]} 45. Rb4 {[%clk 0:00:04]}  Kh7 {[%clk 0:00:05]} 46. Rb7 {[%clk 0:00:04]}  Nd7 {[%clk 0:00:06]} 47. Qd5 {[%clk 0:00:04]}  Rd8 {[%clk 0:00:07]} 48. Rxa7 {[%clk 0:00:05]}  e4 {[%clk 0:00:06]} 49. Qd4 {[%clk 0:00:03]}  Kxh6 {[%clk 0:00:07]} 50. b4 {[%clk 0:00:03]}  Qe5 {[%clk 0:00:06]} 51. Qe3+ {[%clk 0:00:02]}  g5 {[%clk 0:00:06]} 52. Kg2 {[%clk 0:00:02]}  Nf6 {[%clk 0:00:07]} 53. Ra6 {[%clk 0:00:03]}  Qf5 {[%clk 0:00:07]} 54. Qc5 {[%clk 0:00:03]}  g4 {[%clk 0:00:07]} 55. Qxf5 {[%clk 0:00:03]} 1-0


[Site "https://www.chess.com"]

[Event "Late Titled Tuesday Blitz February 8 2022"]
[White "Khater, Sherif"]
[Black "Hess, Robert"]
[WhiteFideId "2034280"]
[BlackFideId "2022036"]
[WhiteElo "2513"]
[BlackElo "2886"]
[Result "1-0"]
[Round "03"]
[TimeControl "180+1"]
[Date "2022.02.09"]
[WhiteClock "0:00:43"]
[BlackClock "0:00:01"]

1. b3 {[%clk 0:03:00]}  g6 {[%clk 0:03:00]} 2. Bb2 {[%clk 0:03:00]}  Nf6 {[%clk 0:02:59]} 3. Nf3 {[%clk 0:02:58]}  Bg7 {[%clk 0:02:58]} 4. c4 {[%clk 0:02:58]}  d6 {[%clk 0:02:58]} 5. g3 {[%clk 0:02:59]}  Nbd7 {[%clk 0:02:58]} 6. Bg2 {[%clk 0:02:59]}  O-O {[%clk 0:02:58]} 7. O-O {[%clk 0:03:00]}  e6 {[%clk 0:02:58]} 8. d4 {[%clk 0:02:59]}  a6 {[%clk 0:02:57]} 9. Nbd2 {[%clk 0:02:59]}  Rb8 {[%clk 0:02:57]} 10. e4 {[%clk 0:02:59]}  b5 {[%clk 0:02:51]} 11. Rc1 {[%clk 0:02:56]}  Bb7 {[%clk 0:02:45]} 12. Re1 {[%clk 0:02:49]}  bxc4 {[%clk 0:02:37]} 13. Rxc4 {[%clk 0:02:42]}  Nxe4 {[%clk 0:02:25]} 14. Qc2 {[%clk 0:02:33]}  Nxd2 {[%clk 0:02:21]} 15. Nxd2 {[%clk 0:02:33]}  Bxg2 {[%clk 0:02:21]} 16. Kxg2 {[%clk 0:02:34]}  Rb7 {[%clk 0:02:05]} 17. Rc1 {[%clk 0:02:34]}  c5 {[%clk 0:01:41]} 18. dxc5 {[%clk 0:02:27]}  Bxb2 {[%clk 0:01:40]} 19. Qxb2 {[%clk 0:02:28]}  Nxc5 {[%clk 0:01:36]} 20. Rd1 {[%clk 0:02:09]}  Rb5 {[%clk 0:00:59]} 21. h4 {[%clk 0:01:56]}  d5 {[%clk 0:00:52]} 22. Rc2 {[%clk 0:01:55]}  Qe7 {[%clk 0:00:40]} 23. Qd4 {[%clk 0:01:54]}  Rd8 {[%clk 0:00:29]} 24. Nf3 {[%clk 0:01:50]}  Ne4 {[%clk 0:00:26]} 25. Rdc1 {[%clk 0:01:48]}  Rb4 {[%clk 0:00:21]} 26. Qe3 {[%clk 0:01:39]}  Rb7 {[%clk 0:00:16]} 27. Ne5 {[%clk 0:01:34]}  Qf6 {[%clk 0:00:13]} 28. Ng4 {[%clk 0:01:31]}  Qe7 {[%clk 0:00:10]} 29. Qf4 {[%clk 0:01:21]}  f5 {[%clk 0:00:08]} 30. Ne5 {[%clk 0:01:20]}  Qd6 {[%clk 0:00:05]} 31. Rc6 {[%clk 0:01:19]}  Qe7 {[%clk 0:00:05]} 32. Rxa6 {[%clk 0:01:13]}  Rf8 {[%clk 0:00:04]} 33. Rac6 {[%clk 0:01:03]}  Ra7 {[%clk 0:00:04]} 34. R6c2 {[%clk 0:00:58]}  Qg7 {[%clk 0:00:03]} 35. f3 {[%clk 0:00:55]}  Nf6 {[%clk 0:00:02]} 36. Qe3 {[%clk 0:00:53]}  d4 {[%clk 0:00:02]} 37. Qe2 {[%clk 0:00:50]}  Nd5 {[%clk 0:00:02]} 38. Nc6 {[%clk 0:00:49]}  Ne3+ {[%clk 0:00:01]} 39. Kh2 {[%clk 0:00:49]}  Nxc2 {[%clk 0:00:01]} 40. Nxa7 {[%clk 0:00:49]}  Nb4 {[%clk 0:00:02]} 41. Qxe6+ {[%clk 0:00:49]}  Kh8 {[%clk 0:00:02]} 42. Nc6 {[%clk 0:00:48]}  Nxa2 {[%clk 0:00:02]} 43. Rc4 {[%clk 0:00:43]}  d3 {[%clk 0:00:01]} 44. Ne5 {[%clk 0:00:42]}  d2 {[%clk 0:00:01]} 45. Rd4 {[%clk 0:00:43]}  Nc3 {[%clk 0:00:01]} 46. Rd7 {[%clk 0:00:43]} 1-0


[Site "https://www.chess.com"]

[Event "Late Titled Tuesday Blitz February 8 2022"]
[White "Khripachenko, Alexander"]
[Black "Marcziter, Dmitrii"]
[WhiteFideId "54184975"]
[BlackFideId "13900765"]
[WhiteElo "2177"]
[BlackElo "2155"]
[Result "1-0"]
[Round "03"]
[TimeControl "180+1"]
[Date "2022.02.09"]
[WhiteClock "0:02:28"]
[BlackClock "0:01:17"]

1. d4 {[%clk 0:03:00]}  d5 {[%clk 0:02:55]} 2. c4 {[%clk 0:03:01]}  e6 {[%clk 0:02:56]} 3. Nc3 {[%clk 0:03:00]}  c5 {[%clk 0:02:56]} 4. cxd5 {[%clk 0:02:59]}  exd5 {[%clk 0:02:57]} 5. Nf3 {[%clk 0:02:59]}  Nc6 {[%clk 0:02:57]} 6. e3 {[%clk 0:02:57]}  a6 {[%clk 0:02:55]} 7. Bd3 {[%clk 0:02:57]}  Nf6 {[%clk 0:02:55]} 8. O-O {[%clk 0:02:57]}  Bg4 {[%clk 0:02:52]} 9. dxc5 {[%clk 0:02:57]}  Bxc5 {[%clk 0:02:51]} 10. Be2 {[%clk 0:02:57]}  O-O {[%clk 0:02:50]} 11. b3 {[%clk 0:02:57]}  Qd6 {[%clk 0:02:48]} 12. Bb2 {[%clk 0:02:57]}  Rad8 {[%clk 0:02:46]} 13. Rc1 {[%clk 0:02:58]}  Ba7 {[%clk 0:02:46]} 14. Nd4 {[%clk 0:02:55]}  Bb8 {[%clk 0:02:45]} 15. g3 {[%clk 0:02:54]}  Bh3 {[%clk 0:02:44]} 16. Re1 {[%clk 0:02:54]}  Ne4 {[%clk 0:02:43]} 17. Nxe4 {[%clk 0:02:53]}  dxe4 {[%clk 0:02:42]} 18. Nxc6 {[%clk 0:02:54]}  bxc6 {[%clk 0:02:28]} 19. Qxd6 {[%clk 0:02:53]}  Bxd6 {[%clk 0:02:27]} 20. Rxc6 {[%clk 0:02:49]}  a5 {[%clk 0:02:26]} 21. Bf1 {[%clk 0:02:47]}  Bf5 {[%clk 0:02:23]} 22. Rd1 {[%clk 0:02:44]}  Bb4 {[%clk 0:02:20]} 23. Rxd8 {[%clk 0:02:43]}  Rxd8 {[%clk 0:02:20]} 24. Bd4 {[%clk 0:02:44]}  h6 {[%clk 0:02:18]} 25. Be2 {[%clk 0:02:42]}  Bh3 {[%clk 0:02:17]} 26. Bf1 {[%clk 0:02:42]}  Bg4 {[%clk 0:02:16]} 27. h3 {[%clk 0:02:41]}  Bf3 {[%clk 0:02:13]} 28. Bg2 {[%clk 0:02:40]}  f6 {[%clk 0:02:10]} 29. Bxf3 {[%clk 0:02:40]}  exf3 {[%clk 0:02:10]} 30. g4 {[%clk 0:02:40]}  h5 {[%clk 0:02:07]} 31. gxh5 {[%clk 0:02:40]}  Rd5 {[%clk 0:02:06]} 32. h6 {[%clk 0:02:39]}  Rg5+ {[%clk 0:02:06]} 33. Kf1 {[%clk 0:02:39]}  Rg2 {[%clk 0:02:03]} 34. hxg7 {[%clk 0:02:36]}  Rh2 {[%clk 0:02:02]} 35. Kg1 {[%clk 0:02:36]}  Rg2+ {[%clk 0:02:02]} 36. Kh1 {[%clk 0:02:36]}  Rxf2 {[%clk 0:02:02]} 37. Rxf6 {[%clk 0:02:36]}  Rf1+ {[%clk 0:02:01]} 38. Kh2 {[%clk 0:02:36]}  Rf2+ {[%clk 0:01:28]} 39. Kg3 {[%clk 0:02:36]}  Rf1 {[%clk 0:01:28]} 40. Rxf3 {[%clk 0:02:34]}  Be1+ {[%clk 0:01:27]} 41. Kf4 {[%clk 0:02:33]}  Rg1 {[%clk 0:01:26]} 42. Ke4 {[%clk 0:02:33]}  Bb4 {[%clk 0:01:23]} 43. Rf4 {[%clk 0:02:29]}  Rg6 {[%clk 0:01:17]} 44. Rh4 {[%clk 0:02:28]} 1-0


[Site "https://www.chess.com"]

[Event "Late Titled Tuesday Blitz February 8 2022"]
[White "Kiolbasa, Oliwia"]
[Black "Iskusnyh, Sergei"]
[WhiteFideId "1154613"]
[BlackFideId "4120027"]
[WhiteElo "2471"]
[BlackElo "2656"]
[Result "1/2-1/2"]
[Round "03"]
[TimeControl "180+1"]
[Date "2022.02.09"]
[WhiteClock "0:00:05"]
[BlackClock "0:00:03"]

1. e4 {[%clk 0:03:00]}  e6 {[%clk 0:02:59]} 2. d4 {[%clk 0:03:00]}  d5 {[%clk 0:03:00]} 3. e5 {[%clk 0:02:59]}  c5 {[%clk 0:02:59]} 4. c3 {[%clk 0:02:57]}  Nc6 {[%clk 0:03:00]} 5. Nf3 {[%clk 0:02:57]}  Qb6 {[%clk 0:03:00]} 6. Bd3 {[%clk 0:02:55]}  cxd4 {[%clk 0:02:58]} 7. O-O {[%clk 0:02:56]}  Bd7 {[%clk 0:02:57]} 8. Re1 {[%clk 0:02:56]}  Rc8 {[%clk 0:02:53]} 9. Nbd2 {[%clk 0:02:47]}  dxc3 {[%clk 0:02:51]} 10. bxc3 {[%clk 0:02:47]}  Na5 {[%clk 0:02:30]} 11. Rb1 {[%clk 0:02:46]}  Qc7 {[%clk 0:02:30]} 12. Bb2 {[%clk 0:02:24]}  Ne7 {[%clk 0:02:26]} 13. Nd4 {[%clk 0:02:06]}  Ng6 {[%clk 0:02:11]} 14. Nb5 {[%clk 0:01:48]}  Bxb5 {[%clk 0:02:10]} 15. Bxb5+ {[%clk 0:01:49]}  Nc6 {[%clk 0:02:09]} 16. c4 {[%clk 0:01:48]}  dxc4 {[%clk 0:01:46]} 17. Nxc4 {[%clk 0:01:43]}  Rd8 {[%clk 0:01:37]} 18. Qf3 {[%clk 0:01:31]}  Be7 {[%clk 0:01:30]} 19. Nd6+ {[%clk 0:01:25]}  Bxd6 {[%clk 0:01:30]} 20. exd6 {[%clk 0:01:26]}  Qxd6 {[%clk 0:01:30]} 21. Bxg7 {[%clk 0:01:26]}  Rg8 {[%clk 0:01:29]} 22. Qf6 {[%clk 0:01:09]}  e5 {[%clk 0:00:47]} 23. Ba4 {[%clk 0:00:44]}  Qxf6 {[%clk 0:00:42]} 24. Bxf6 {[%clk 0:00:43]}  Rd6 {[%clk 0:00:40]} 25. Bxe5 {[%clk 0:00:40]}  Nxe5 {[%clk 0:00:37]} 26. Rxe5+ {[%clk 0:00:40]}  Kf8 {[%clk 0:00:21]} 27. Ree1 {[%clk 0:00:37]}  Rg4 {[%clk 0:00:17]} 28. Bxc6 {[%clk 0:00:33]}  bxc6 {[%clk 0:00:16]} 29. Rb7 {[%clk 0:00:25]}  Ra4 {[%clk 0:00:15]} 30. g3 {[%clk 0:00:16]}  Rxa2 {[%clk 0:00:13]} 31. Ree7 {[%clk 0:00:16]}  Rf6 {[%clk 0:00:13]} 32. f4 {[%clk 0:00:16]}  Kg8 {[%clk 0:00:13]} 33. Rxa7 {[%clk 0:00:14]}  Rc2 {[%clk 0:00:13]} 34. Rac7 {[%clk 0:00:14]}  Rd6 {[%clk 0:00:12]} 35. Re8+ {[%clk 0:00:08]}  Kg7 {[%clk 0:00:12]} 36. Re1 {[%clk 0:00:07]}  Rdd2 {[%clk 0:00:11]} 37. Rb1 {[%clk 0:00:03]}  Rg2+ {[%clk 0:00:11]} 38. Kf1 {[%clk 0:00:04]}  Rxh2 {[%clk 0:00:11]} 39. Kg1 {[%clk 0:00:04]}  Rcg2+ {[%clk 0:00:11]} 40. Kf1 {[%clk 0:00:05]}  Rxg3 {[%clk 0:00:09]} 41. Rbb7 {[%clk 0:00:05]}  Rgg2 {[%clk 0:00:03]} 42. Rxf7+ {[%clk 0:00:04]}  Kg8 {[%clk 0:00:03]} 43. Rfc7 {[%clk 0:00:04]}  Rf2+ {[%clk 0:00:03]} 44. Kg1 {[%clk 0:00:05]}  Rhg2+ {[%clk 0:00:04]} 45. Kh1 {[%clk 0:00:05]}  Kh8 {[%clk 0:00:04]} 46. Rxc6 {[%clk 0:00:04]}  Rg6 {[%clk 0:00:02]} 47. Rc8+ {[%clk 0:00:03]}  Rg8 {[%clk 0:00:02]} 48. Rcc7 {[%clk 0:00:03]}  Rf1+ {[%clk 0:00:01]} 49. Kh2 {[%clk 0:00:03]}  Rf2+ {[%clk 0:00:02]} 50. Kh1 {[%clk 0:00:04]}  Rf1+ {[%clk 0:00:02]} 51. Kh2 {[%clk 0:00:04]}  Rf2+ {[%clk 0:00:03]} 52. Kh1 {[%clk 0:00:05]} 1/2-1/2


[Site "https://www.chess.com"]

[Event "Late Titled Tuesday Blitz February 8 2022"]
[White "Kobalia, Mikhail"]
[Black "Nihal Sarin"]
[WhiteFideId "4119150"]
[BlackFideId "25092340"]
[WhiteElo "2667"]
[BlackElo "2705"]
[Result "0-1"]
[Round "03"]
[TimeControl "180+1"]
[Date "2022.02.08"]
[WhiteClock "0:00:44"]
[BlackClock "0:01:00"]

1. e4 {[%clk 0:03:00]}  c6 {[%clk 0:02:57]} 2. d4 {[%clk 0:03:00]}  d5 {[%clk 0:02:58]} 3. exd5 {[%clk 0:03:00]}  cxd5 {[%clk 0:02:57]} 4. Bd3 {[%clk 0:03:01]}  Nc6 {[%clk 0:02:57]} 5. c3 {[%clk 0:03:01]}  Qc7 {[%clk 0:02:53]} 6. Ne2 {[%clk 0:02:59]}  Bg4 {[%clk 0:02:53]} 7. O-O {[%clk 0:02:58]}  e6 {[%clk 0:02:52]} 8. Qe1 {[%clk 0:02:58]}  Bd6 {[%clk 0:02:15]} 9. f3 {[%clk 0:02:54]}  Bh5 {[%clk 0:02:15]} 10. Qh4 {[%clk 0:02:54]}  Bg6 {[%clk 0:02:16]} 11. Bxg6 {[%clk 0:02:53]}  fxg6 {[%clk 0:02:16]} 12. Bf4 {[%clk 0:02:52]}  Nf6 {[%clk 0:02:15]} 13. Qg3 {[%clk 0:02:38]}  e5 {[%clk 0:01:57]} 14. dxe5 {[%clk 0:02:34]}  Nxe5 {[%clk 0:01:58]} 15. Qh3 {[%clk 0:02:04]}  O-O {[%clk 0:01:52]} 16. Nd2 {[%clk 0:02:02]}  Rae8 {[%clk 0:01:30]} 17. Nd4 {[%clk 0:01:54]}  Nd3 {[%clk 0:01:28]} 18. Bxd6 {[%clk 0:01:52]}  Qxd6 {[%clk 0:01:29]} 19. Rab1 {[%clk 0:01:33]}  Qf4 {[%clk 0:01:21]} 20. N2b3 {[%clk 0:00:44]}  Qe3+ {[%clk 0:01:02]} 21. Kh1 {[%clk 0:00:44]}  Ne4 {[%clk 0:01:00]} 0-1


[Site "https://www.chess.com"]

[Event "Late Titled Tuesday Blitz February 8 2022"]
[White "Kopylov, Alexander A."]
[Black "Curtis, John"]
[WhiteFideId "4164857"]
[BlackFideId "3200256"]
[WhiteElo "2799"]
[BlackElo "2277"]
[Result "1-0"]
[Round "03"]
[TimeControl "180+1"]
[Date "2022.02.09"]
[WhiteClock "0:01:04"]
[BlackClock "0:00:20"]

1. e4 {[%clk 0:03:00]}  e6 {[%clk 0:02:58]} 2. d4 {[%clk 0:02:59]}  d5 {[%clk 0:02:58]} 3. Nd2 {[%clk 0:02:59]}  dxe4 {[%clk 0:02:57]} 4. Nxe4 {[%clk 0:02:59]}  Nd7 {[%clk 0:02:58]} 5. Nf3 {[%clk 0:02:57]}  Ngf6 {[%clk 0:02:58]} 6. Bd3 {[%clk 0:02:57]}  Nxe4 {[%clk 0:02:58]} 7. Bxe4 {[%clk 0:02:57]}  Be7 {[%clk 0:02:52]} 8. O-O {[%clk 0:02:56]}  Nf6 {[%clk 0:02:52]} 9. Bd3 {[%clk 0:02:56]}  c5 {[%clk 0:02:49]} 10. Be3 {[%clk 0:02:53]}  cxd4 {[%clk 0:02:48]} 11. Bxd4 {[%clk 0:02:52]}  Bd7 {[%clk 0:02:49]} 12. Ne5 {[%clk 0:02:50]}  O-O {[%clk 0:02:45]} 13. Qf3 {[%clk 0:02:45]}  Qc8 {[%clk 0:02:36]} 14. Rad1 {[%clk 0:02:42]}  Bc5 {[%clk 0:02:11]} 15. Bc3 {[%clk 0:02:28]}  Bc6 {[%clk 0:02:00]} 16. Qh3 {[%clk 0:02:26]}  Be4 {[%clk 0:01:47]} 17. Nd7 {[%clk 0:01:49]}  Nxd7 {[%clk 0:01:22]} 18. Bxe4 {[%clk 0:01:48]}  f5 {[%clk 0:01:16]} 19. Bd3 {[%clk 0:01:40]}  Nf6 {[%clk 0:01:12]} 20. Qf3 {[%clk 0:01:37]}  Nd5 {[%clk 0:01:07]} 21. Be5 {[%clk 0:01:37]}  Qc6 {[%clk 0:00:57]} 22. Qe2 {[%clk 0:01:33]}  a6 {[%clk 0:00:55]} 23. Bc4 {[%clk 0:01:32]}  Rad8 {[%clk 0:00:49]} 24. Bb3 {[%clk 0:01:30]}  b5 {[%clk 0:00:47]} 25. c4 {[%clk 0:01:27]}  bxc4 {[%clk 0:00:47]} 26. Bxc4 {[%clk 0:01:28]}  Rc8 {[%clk 0:00:42]} 27. Bb3 {[%clk 0:01:27]}  Rfd8 {[%clk 0:00:42]} 28. h3 {[%clk 0:01:26]}  Bf8 {[%clk 0:00:41]} 29. Bg3 {[%clk 0:01:22]}  f4 {[%clk 0:00:39]} 30. Bh4 {[%clk 0:01:22]}  Rd7 {[%clk 0:00:37]} 31. Rfe1 {[%clk 0:01:22]}  Re8 {[%clk 0:00:37]} 32. Qe4 {[%clk 0:01:21]}  h6 {[%clk 0:00:35]} 33. Qg6 {[%clk 0:01:08]}  Nc7 {[%clk 0:00:24]} 34. Bc2 {[%clk 0:01:03]}  Rxd1 {[%clk 0:00:21]} 35. Qh7+ {[%clk 0:01:03]}  Kf7 {[%clk 0:00:20]} 36. Bg6# {[%clk 0:01:04]} 1-0


[Site "https://www.chess.com"]